bitfinex-derivatives/quotes_SOLF0:USTF0_20250613
["timestamp","ask_amount","ask_price","bid_price","bid_amount"]
[1749823464751,2.2209,145.38,145.28,51.5798]
[1749823464941,0.04586958,145.34,145.28,51.5798]
[1749823465144,0.04586958,145.34,145.27,4.5753]
[1749823465548,6.8793,145.3,145.27,2.1894]
[1749823465750,0.05093004,145.3,145.27,2.1894]
[1749823465952,0.05093004,145.3,145.24,44.7]
[1749823466252,0.05093004,145.3,145.08,16.30105095]
[1749823466253,61.07198099,145.3,145.18,44.72]
[1749823466446,0.04880773,145.25,145.18,44.72]
[1749823466647,0.04880773,145.25,145.23,6.882]
[1749823466849,0.04880773,145.25,145.19,1.2594]
[1749823467051,0.04880773,145.25,145.18,61.08224904]
[1749823467256,0.04880773,145.25,145.18,51.6042]
[1749823467451,0.04880773,145.25,145.18,44.72]
[1749823467645,0.04880773,145.25,145.15,395.8]
[1749823467646,16.41105677,145.25,145.15,440.52]
[1749823467844,0.04633,145.21,145.15,44.72]
[1749823468245,0.04633,145.21,145.12,44.72]
[1749823468452,0.05253922,145.18,145.1,1.19867732]
[1749823468758,16.36224904,145.17,145.07,46.68]
[1749823468948,0.04718417,145.13,145.02,51.4089]
[1749823469256,0.05015168,145.09,145.04,6.891]
[1749823469455,0.05015168,145.09,145.02,51.4089]
[1749823469655,0.05015168,145.09,145.02,67.77114904]
[1749823470552,0.05015168,145.09,145.04,16.39523388]
[1749823470752,0.05015168,145.09,145.06,16.39523388]
[1749823470952,0.05015168,145.09,145.08,6.8893]
[1749823471249,0.05015168,145.09,145.06,46.72]
[1749823471250,2.3091,145.16,145.06,63.16538556]
[1749823471452,9.1946,145.16,145.06,46.72]
[1749823471755,2.3091,145.16,145.06,63.11523388]
[1749823471957,2.3091,145.16,145.11,6.8877]
[1749823472151,0.04910473,145.12,145.11,6.8877]
[1749823472553,46.74,145.21,145.13,6.8865]
[1749823472957,46.74,145.21,145.1,63.13523388]
[1749823473152,46.74,145.21,145.1,46.74]
[1749823473350,46.74,145.21,145.1,63.13523388]
[1749823473556,0.04983773,145.17,145.14,0.05075138]
[1749823473950,0.04983773,145.17,145.14,6.93705138]
[1749823474149,0.04983773,145.17,145.14,0.05075138]
[1749823475464,51.14,145.16,145.02,4.6889]
[1749823475758,16.39912585,145.15,145.03,51.14]
[1749823476152,6.887,145.13,145.03,51.14]
[1749823476672,0.04626544,145.09,145.07,6.93790503]
[1749823476863,0.04626544,145.09,145.07,0.04850503]
[1749823477059,0.04626544,145.09,145.08,58.0293]
[1749823477860,67.55912585,145.2,145.08,51.14]
[1749823478264,67.55912585,145.2,145.11,6.8875]
[1749823478859,6.8855,145.16,145.14,0.05176265]
[1749823479058,0.04923451,145.17,145.14,0.05176265]
[1749823480271,0.04923451,145.17,145.16,6.8855]
[1749823481070,446.96,145.24,145.19,6.884]
[1749823481071,6.8825,145.23,145.19,6.884]
[1749823481260,2.3425,145.25,145.16,16.39912585]
[1749823481466,51.16,145.28,145.17,51.16]
[1749823481666,51.16,145.28,145.19,16.39912585]
[1749823482167,0.05273732,145.25,145.22,0.04580518]
[1749823482562,0.05273732,145.25,145.23,6.8821]
[1749823482766,0.05273732,145.25,145.22,0.04580518]
[1749823482968,51.16,145.32,145.23,51.16]
[1749823483969,0.04977301,145.29,145.26,0.04464341]
[1749823484365,0.04977301,145.29,145.26,6.92534341]
[1749823484564,0.04977301,145.29,145.26,0.04464341]
[1749823484966,0.04977301,145.29,145.26,6.92524341]
[1749823485164,0.04977301,145.29,145.26,0.04464341]
[1749823486671,0.04977301,145.29,145.28,6.8798]
[1749823486864,0.04977301,145.29,145.28,58.0398]
[1749823487261,51.16,145.36,145.28,51.16]
[1749823487471,16.39912585,145.39,145.28,51.16]
[1749823487670,6.8769,145.35,145.3,6.8785]
[1749823488078,6.8769,145.35,145.28,67.55912585]
[1749823488271,0.04955113,145.33,145.3,6.93002761]
[1749823488471,0.04955113,145.33,145.3,0.04775114]
[1749823488472,0.04422282,145.33,145.3,0.04775114]
[1749823488673,0.04422282,145.33,145.3,6.92615114]
[1749823488872,0.04422282,145.33,145.3,0.04775114]
[1749823489071,6.876,145.37,145.3,0.04775114]
[1749823489268,6.876,145.37,145.32,6.8776]
[1749823489864,53.4604,145.4,145.29,18.64212585]
[1749823490063,0.04486759,145.36,145.33,0.04984239]
[1749823490362,0.04486759,145.36,145.33,51.18984239]
[1749823490569,0.04486759,145.36,145.33,58.06694239]
[1749823490876,0.04486759,145.36,145.33,51.18984239]
[1749823491171,51.14,145.44,145.33,51.18984239]
[1749823491476,51.14,145.44,145.33,51.14]
[1749823491676,51.14,145.44,145.38,6.875]
[1749823492069,16.39912585,145.47,145.35,16.39912585]
[1749823492274,0.05118272,145.42,145.4,0.05289408]
[1749823493070,6.8737,145.41,145.4,0.05289408]
[1749823494179,0.05118272,145.42,145.34,51.12]
[1749823494481,16.39912585,145.42,145.34,51.12]
[1749823494677,6.8764,145.36,145.34,51.12]
[1749823494874,16.39912585,145.42,145.34,51.12]
[1749823495080,0.04744579,145.39,145.37,8.134e-05]
[1749823495479,16.44657164,145.39,145.37,8.134e-05]
[1749823496182,6.8751,145.38,145.37,8.134e-05]
[1749823497180,299.0,145.37,145.09,8.28952723]
[1749823497381,16.35263139,145.32,144.98,16.35263139]
[1749823497574,16.35263139,145.32,144.95,11.0386846]
[1749823497575,16.35263139,145.2,144.97,2.3046]
[1749823497879,16.35263139,145.08,144.97,2.3046]
[1749823498082,16.35263139,145.08,144.95,2.74915737]
[1749823498288,0.04670054,145.04,145.01,0.05039221]
[1749823498581,0.04670054,145.04,144.89,16.35263139]
[1749823498582,61.0,145.03,144.89,16.35263139]
[1749823498783,4.5523,145.19,144.92,16.35263139]
[1749823498784,16.35263139,145.06,144.92,16.35263139]
[1749823499085,16.35263139,145.09,144.93,51.16]
[1749823499277,16.35263139,145.06,144.94,396.38]
[1749823499478,0.05177852,145.01,144.99,0.05019101]
[1749823499677,2.2245,145.11,145.0,51.16]
[1749823500080,16.35263139,145.15,145.01,16.35263139]
[1749823500277,16.35263139,145.15,145.01,18.51633139]
[1749823500477,2.2245,145.18,145.04,16.35263139]
[1749823500677,2.2245,145.18,145.05,51.16]
[1749823500678,18.57713139,145.18,145.05,51.16]
[1749823500885,0.04635419,145.12,145.1,0.04748766]
[1749823501188,0.04457419,145.12,145.1,0.05058412]
[1749823502988,0.04457419,145.12,145.1,52.97058412]
[1749823503281,2.2245,145.18,145.1,59.85848412]
[1749823503282,6.8849,145.18,145.1,59.85848412]
[1749823503589,52.92,145.24,145.1,52.92]
[1749823503590,16.35263139,145.21,145.1,52.92]
[1749823503989,6.884,145.2,145.12,6.8873]
[1749823504184,0.04631511,145.17,145.15,0.04728081]
[1749823504383,0.04631511,145.17,145.1,52.92]
[1749823505383,0.04631511,145.17,145.12,0.04522839]
[1749823505781,0.04631511,145.17,145.12,6.93222839]
[1749823505984,0.04631511,145.17,145.12,0.04522839]
[1749823506287,0.04631511,145.17,145.12,16.39785978]
[1749823506482,0.04631511,145.17,145.12,0.04522839]
[1749823506789,0.04631511,145.17,145.15,6.8858]
[1749823506995,0.04631511,145.17,145.12,0.04522839]
[1749823507191,0.04631511,145.17,145.14,16.37631445]
[1749823507493,0.04631511,145.17,145.16,6.8855]
[1749823511500,0.04631511,145.17,145.15,52.96730168]
[1749823512393,0.04631511,145.17,145.15,0.04730168]
[1749823513998,0.04631511,145.17,145.15,6.93310168]
[1749823514696,0.04631511,145.17,145.15,0.04730168]
[1749823515292,6.93161511,145.17,145.15,0.04730168]
[1749823515695,0.04631511,145.17,145.15,0.04730168]
[1749823519198,0.04631511,145.17,145.06,9.0976]
[1749823519199,0.04631511,145.17,145.09,52.92]
[1749823519404,0.04631511,145.17,145.01,55.0837]
[1749823519405,16.38055463,145.12,145.01,55.0837]
[1749823520205,0.04623911,145.08,145.05,0.04698627]
[1749823520405,0.04623911,145.08,145.05,6.93738627]
[1749823520805,0.04623911,145.08,145.05,0.04698627]
[1749823521105,6.93583911,145.08,145.05,0.04698627]
[1749823521305,0.04623911,145.08,145.05,0.04698627]
[1749823521598,0.04623911,145.08,145.07,6.8898]
[1749823523497,0.04623911,145.08,145.05,0.04698627]
[1749823523999,16.38055463,145.06,144.97,57.0781]
[1749823524405,16.38055463,145.06,144.97,54.78]
[1749823524612,71.16055463,145.06,144.97,54.78]
[1749823524796,16.38055463,145.05,144.97,54.78]
[1749823525005,0.04631428,145.03,145.0,0.04844837]
[1749823525300,16.38055463,145.02,144.95,6.8953]
[1749823525800,16.38055463,145.02,144.93,57.0785]
[1749823525801,6.8944,144.98,144.94,6.8956]
[1749823526000,6.8944,144.98,144.93,57.0785]
[1749823526200,0.05180858,144.97,144.94,0.05123856]
[1749823527002,6.94650858,144.97,144.94,0.05123856]
[1749823527200,0.05180858,144.97,144.94,0.05123856]
[1749823527609,0.05180858,144.97,144.94,6.94683856]
[1749823528009,0.05180858,144.97,144.94,0.05123856]
[1749823528204,0.05180858,144.97,144.96,6.895]
[1749823528410,0.05180858,144.97,144.94,0.05123856]
[1749823528713,0.05180858,144.97,144.95,6.8952]
[1749823528903,0.00441026,144.97,144.94,0.05123856]
[1749823529418,0.00441026,144.97,144.96,6.895]
[1749823529612,57.1641,145.08,144.95,16.38055463]
[1749823529910,57.1641,145.08,145.01,6.8922]
[1749823530307,6.8918,145.03,145.0,6.893]
[1749823530504,0.04818732,145.03,145.0,0.05169113]
[1749823531110,6.8924,145.02,145.0,0.05169113]
[1749823531608,0.04818732,145.03,145.0,0.05169113]
[1749823532208,0.04818732,145.03,145.02,6.8921]
[1749823533003,54.82,145.08,145.0,0.05169113]
[1749823533213,57.1031,145.12,145.0,16.47015374]
[1749823533514,57.1031,145.12,145.0,16.41846261]
[1749823533714,57.1031,145.12,144.99,71.23846261]
[1749823533715,16.41846261,145.1,144.99,71.23846261]
[1749823534009,0.04992346,145.06,145.03,0.04996368]
[1749823535611,0.04992346,145.06,144.99,54.82]
[1749823536119,6.8922,145.02,144.99,61.7135]
[1749823536614,0.0436571,145.02,144.99,54.8730387]
[1749823537412,0.0436571,145.02,145.0,6.8928]
[1749823537612,0.0436571,145.02,144.99,54.8730387]
[1749823537807,0.0436571,145.02,145.01,6.8926]
[1749823538012,0.0436571,145.02,144.99,54.8730387]
[1749823538411,0.0436571,145.02,145.0,6.8928]
[1749823538917,0.0436571,145.02,145.01,6.8926]
[1749823539316,0.0436571,145.02,144.99,54.8730387]
[1749823539515,0.0436571,145.02,145.0,6.8928]
[1749823539712,0.0436571,145.02,144.99,54.8730387]
[1749823540021,0.0436571,145.02,145.01,6.8926]
[1749823542125,2.2831,145.12,145.05,6.8904]
[1749823542323,2.2831,145.12,145.0,16.41846261]
[1749823542622,2.2831,145.12,145.04,6.8909]
[1749823543021,0.04547771,145.09,145.07,0.04540983]
[1749823543220,6.8897,145.08,145.07,0.04540983]
[1749823543616,0.04547771,145.09,145.07,0.04540983]
[1749823543816,0.04547771,145.09,145.08,6.8893]
[1749823544017,0.04547771,145.09,145.07,0.04540983]
[1749823544318,54.82,145.15,145.07,0.04540983]
[1749823544514,54.82,145.15,145.06,16.41846261]
[1749823544918,54.82,145.15,145.08,6.889]
[1749823545118,54.82,145.15,145.06,16.41846261]
[1749823545320,6.8876,145.12,145.06,16.41846261]
[1749823545525,0.04466279,145.12,145.09,0.04648366]
[1749823546314,6.8883,145.1,145.09,0.04648366]
[1749823547428,23.31846261,145.1,145.02,6.872]
[1749823547624,16.41846261,145.1,145.02,6.872]
[1749823547924,54.82,145.09,144.95,75.15286261]
[1749823548332,0.04527322,145.03,145.01,0.05140804]
[1749823548531,0.05223589,145.03,145.01,0.04393109]
[1749823548928,6.8921,145.02,145.01,0.04393109]
[1749823549129,0.05223589,145.03,145.01,0.04393109]
[1749823549532,6.8921,145.02,145.01,0.04393109]
[1749823549729,0.05223589,145.03,145.01,0.04393109]
[1749823550127,6.94403589,145.03,145.01,0.04393109]
[1749823551034,0.05223589,145.03,145.01,0.04393109]
[1749823552136,0.05223589,145.03,145.02,6.8921]
[1749823553639,0.05223589,145.03,145.01,0.04393109]
[1749823554540,0.05223589,145.03,145.01,6.93633109]
[1749823555536,0.05223589,145.03,145.02,6.8921]
[1749823555834,0.05223589,145.03,145.01,0.04393109]
[1749823556737,6.8921,145.02,145.01,0.04393109]
[1749823558042,0.05223589,145.03,144.92,55.3995]
[1749823558242,2.3249,145.02,144.92,55.3995]
[1749823558538,6.8936,144.99,144.92,55.3995]
[1749823558737,13.7815,145.06,144.92,55.3995]
[1749823558738,16.41846261,145.07,144.94,16.41846261]
[1749823558944,53.18,145.06,144.94,16.41846261]
[1749823559144,0.04841536,145.01,144.99,0.04734806]
[1749823559641,0.04841536,145.01,145.0,6.8931]
[1749823560140,6.8907,145.05,145.02,6.8919]
[1749823560336,69.59846261,145.1,144.98,16.41846261]
[1749823561142,0.05259801,145.05,145.03,1.163e-05]
[1749823561443,0.05259801,145.05,144.91,458.84]
[1749823561444,75.8998942,145.04,144.84,1.23158048]
[1749823561645,16.42948538,144.95,144.81,2.2385]
[1749823561839,53.18,144.94,144.81,2.2385]
[1749823562036,55.5744,144.94,144.81,2.2385]
[1749823562233,16.42948538,144.93,144.81,2.2385]
[1749823562438,6.8993,144.87,144.86,0.050284]
[1749823562741,0.04667652,144.88,144.86,0.050284]
[1749823563341,53.18,144.98,144.86,16.47976938]
[1749823563540,16.42948538,145.0,144.87,2.3088]
[1749823563734,2.1831,145.01,144.89,16.43066473]
[1749823563937,2.1831,145.01,144.9,55.4023]
[1749823564245,184.37451678,145.04,144.92,16.43066473]
[1749823564441,0.04489782,144.97,144.94,16.47928603]
[1749823564641,184.37451678,145.04,144.95,55.4888]
[1749823564843,55.3631,145.08,144.95,55.4888]
[1749823565031,71.79376473,145.08,144.95,55.4888]
[1749823565634,0.04989929,145.03,145.02,6.8921]
[1749823565840,6.8903,145.06,145.02,6.8921]
[1749823565841,0.05171992,145.04,145.02,6.8921]
[1749823566442,0.05171992,145.04,145.01,0.04509135]
[1749823566943,6.8917,145.03,145.01,0.04509135]
[1749823567143,0.05171992,145.04,145.01,0.04509135]
[1749823568151,6.8917,145.03,145.01,0.04509135]
[1749823568348,0.05171992,145.04,145.01,0.04509135]
[1749823568748,6.892,145.03,145.01,0.04509135]
[1749823568947,0.05171992,145.04,145.01,0.04509135]
[1749823569846,6.8917,145.03,145.01,0.04509135]
[1749823570248,0.05171992,145.04,145.01,0.04509135]
[1749823570544,6.8921,145.02,145.01,0.04509135]
[1749823571545,6.8921,145.02,145.01,9.135e-05]
[1749823572044,23.32276473,145.02,145.01,9.135e-05]
[1749823572250,6.8953,144.96,144.91,55.4973]
[1749823572752,6.8953,144.96,144.93,6.8962]
[1749823573350,0.04576058,144.96,144.93,0.04539607]
[1749823573950,0.04576058,144.96,144.95,6.8955]
[1749823574155,55.3512,145.05,144.93,0.04539607]
[1749823574455,55.3512,145.05,144.92,16.43066473]
[1749823575152,0.04993919,145.0,144.97,0.04563155]
[1749823575655,0.04993919,145.0,144.99,6.8936]
[1749823579258,3.919e-05,145.0,144.99,13.7936]
[1749823579453,3.919e-05,145.0,144.99,16.0267]
[1749823580458,3.919e-05,145.0,144.99,9.1267]
[1749823581762,3.919e-05,145.0,144.99,16.0267]
[1749823582665,3.919e-05,145.0,144.99,9.1267]
[1749823585960,2.1818,145.12,144.99,25.56376473]
[1749823586263,4.5195,145.12,144.99,18.66376473]
[1749823586660,6.8885,145.1,145.03,16.43066473]
[1749823586856,0.04753471,145.08,145.05,0.04707828]
[1749823587457,0.04753471,145.08,145.07,6.8898]
[1749823587659,0.04753471,145.08,145.05,0.04707828]
[1749823587660,6.8902,145.06,145.05,0.04707828]
[1749823587856,0.04753471,145.08,145.05,0.04707828]
[1749823588260,16.43066473,145.07,144.99,53.6731]
[1749823588564,16.43066473,145.04,144.95,51.44]
[1749823588869,16.43066473,145.04,144.92,51.44]
[1749823588870,6.894,144.99,144.92,51.44]
[1749823589158,6.894,144.99,144.95,6.8951]
[1749823589379,0.04472902,144.98,144.96,0.05118487]
[1749823589566,0.04472902,144.98,144.96,6.94588487]
[1749823589868,0.04472902,144.98,144.96,0.05118487]
[1749823590067,0.04472902,144.98,144.97,6.8945]
[1749823590568,0.04472902,144.98,144.96,0.05118487]
[1749823591860,0.04472902,144.98,144.96,6.94588487]
[1749823592267,0.04472902,144.98,144.96,0.05118487]
[1749823593166,0.04472902,144.98,144.97,6.8945]
[1749823594767,2.2442,145.08,144.97,49.66]
[1749823595069,2.2442,145.08,144.98,25.67296473]
[1749823595669,0.05191621,145.04,145.02,0.04605581]
[1749823595964,0.05191621,145.04,145.03,6.8917]
[1749823596361,0.05191621,145.04,145.02,0.04605581]
[1749823596568,0.05191621,145.04,145.03,6.8917]
[1749823597672,51.8935,145.13,145.06,6.8902]
[1749823598167,51.8935,145.13,145.03,6.872]
[1749823598168,6.8889,145.09,145.05,6.8905]
[1749823598372,51.8935,145.13,145.03,6.872]
[1749823598672,0.05156226,145.09,145.07,0.04376196]
[1749823599074,0.05156226,145.09,145.07,6.93316196]
[1749823599264,0.05156226,145.09,145.07,0.04376196]
[1749823599568,0.05156226,145.09,145.07,6.93346196]
[1749823599962,0.05156226,145.09,145.07,0.04376196]
[1749823601168,6.8893,145.08,145.07,0.04376196]
[1749823602075,6.8893,145.08,145.02,49.66]
[1749823602076,6.8905,145.06,145.02,49.66]
[1749823602576,16.43066473,145.11,145.04,6.8912]
[1749823602770,6.89,145.07,145.04,6.8912]
[1749823602970,16.43066473,145.11,145.02,49.66]
[1749823603174,6.93981183,145.08,145.05,0.05116772]
[1749823603561,0.05021183,145.08,145.05,0.05116772]
[1749823603766,0.05021183,145.08,145.02,66.04183245]
[1749823604067,0.05021183,145.08,145.07,6.8898]
[1749823604876,0.05021183,145.08,145.07,56.5498]
[1749823606878,49.66,145.17,145.07,49.66]
[1749823607065,2.1939,145.18,145.08,16.43066473]
[1749823607271,6.8853,145.17,145.14,6.8864]
[1749823607478,2.1939,145.18,145.08,25.64596473]
[1749823607875,0.04528188,145.14,145.12,0.04713786]
[1749823609264,0.04528188,145.14,145.12,6.93443786]
[1749823609469,0.04528188,145.14,145.12,0.04713786]
[1749823609670,0.04528188,145.14,145.13,6.8869]
[1749823609975,0.04528188,145.14,145.12,47.96713786]
[1749823610179,0.04528188,145.14,145.13,6.8869]
[1749823610578,0.04528188,145.14,145.12,47.96713786]
[1749823610764,6.8869,145.13,145.12,0.04713786]
[1749823612172,6.93198188,145.14,145.12,0.04713786]
[1749823612771,6.8869,145.13,145.12,0.04713786]
[1749823612975,0.04528188,145.14,145.05,2.2396]
[1749823613273,16.43066473,145.13,145.05,47.92]
[1749823613578,2.2008,145.12,145.05,47.92]
[1749823613780,6.889,145.09,145.05,47.92]
[1749823614078,0.04506262,145.08,145.07,6.8897]
[1749823614271,0.04506262,145.08,145.06,0.04599402]
[1749823614472,0.04506262,145.08,145.06,6.93599402]
[1749823614679,0.04506262,145.08,145.06,0.04599402]
[1749823615679,0.04506262,145.08,145.07,6.8898]
[1749823616074,0.04506262,145.08,145.06,0.04599402]
[1749823616273,0.04506262,145.08,145.06,6.93599402]
[1749823616473,0.04506262,145.08,145.06,0.04599402]
[1749823617276,0.04506262,145.08,145.06,6.93599402]
[1749823619084,0.04506262,145.08,145.07,6.8898]
[1749823619386,0.04506262,145.08,145.06,0.04599402]
[1749823619573,6.93456262,145.08,145.06,6.93619402]
[1749823619777,0.04506262,145.08,145.06,0.04599402]
[1749823620281,23.36094164,145.08,144.95,12.77135603]
[1749823620477,47.92,145.09,144.97,64.33587902]
[1749823620786,66.53667902,145.12,145.0,16.41587902]
[1749823620976,5.50847639,145.11,145.0,16.41587902]
[1749823621281,6.8906,145.06,145.0,9.81669652]
[1749823621582,0.05266842,145.07,145.04,0.04408529]
[1749823621779,0.04418252,145.07,145.04,0.04893952]
[1749823621978,9.81546686,145.06,144.97,57.73546686]
[1749823622182,9.81546686,145.06,144.97,47.92]
[1749823622480,6.8938,144.99,144.97,47.92]
[1749823622683,6.8938,144.99,144.93,16.49406686]
[1749823622684,9.81546686,145.04,144.93,64.41406686]
[1749823622885,0.04651932,145.0,144.97,0.04981906]
[1749823623281,6.8938,144.99,144.97,0.04981906]
[1749823623483,0.04651932,145.0,144.97,0.04981906]
[1749823623887,6.93991932,145.0,144.97,0.04981906]
[1749823624080,0.04651932,145.0,144.97,0.04981906]
[1749823624586,0.04651932,145.0,144.93,54.8162]
[1749823624785,0.04651932,145.0,144.93,47.92]
[1749823625086,6.8957,144.95,144.93,47.92]
[1749823625487,0.0529227,144.95,144.93,47.96509923]
[1749823627280,0.0529227,144.95,144.93,0.04509923]
[1749823627479,0.0529227,144.95,144.89,16.42332972]
[1749823627480,0.0529227,144.95,144.89,47.94]
[1749823627690,0.0529227,144.95,144.85,444.74]
[1749823627892,18.62332972,144.96,144.85,444.74]
[1749823628282,6.898,144.9,144.86,6.8995]
[1749823628586,0.0455538,144.89,144.87,0.05114112]
[1749823628888,0.04728985,144.89,144.87,0.05124381]
[1749823629786,9.0954,144.96,144.87,16.47457353]
[1749823629987,9.0954,144.96,144.87,16.42332972]
[1749823630192,47.94,144.97,144.87,169.32332972]
[1749823630387,54.8349,144.97,144.9,16.42332972]
[1749823630591,2.2948,144.99,144.9,47.94]
[1749823630784,0.05248982,144.96,144.93,0.05310622]
[1749823631594,0.05248982,144.96,144.93,6.94950622]
[1749823631799,0.05248982,144.96,144.93,0.05310622]
[1749823632090,6.94798982,144.96,144.93,0.05310622]
[1749823632292,0.05248982,144.96,144.93,0.05310622]
[1749823632488,16.42332972,144.95,144.93,6.22e-06]
[1749823632689,6.8959,144.94,144.93,6.22e-06]
[1749823634795,13.7959,144.94,144.93,6.22e-06]
[1749823634995,13.7959,144.94,144.79,4.6233]
[1749823634996,6.8998,144.86,144.82,6.9015]
[1749823635197,18.82312972,144.95,144.81,46.22]
[1749823635198,16.42332972,144.9,144.81,46.22]
[1749823635494,6.8997,144.87,144.81,46.22]
[1749823635702,16.42332972,144.9,144.81,46.22]
[1749823635889,16.42332972,144.9,144.84,0.04397979]
[1749823636087,0.0460396,144.87,144.84,0.04397979]
[1749823636298,0.05180582,144.87,144.84,0.04680212]
[1749823636698,0.05180582,144.87,144.84,6.94720212]
[1749823636891,0.05180582,144.87,144.84,0.04680212]
[1749823637702,0.05180582,144.87,144.86,6.8998]
[1749823637999,4.5755,144.95,144.86,16.42332972]
[1749823638205,4.5755,144.95,144.85,46.22]
[1749823638701,6.8976,144.91,144.87,6.899]
[1749823639095,0.05140694,144.9,144.88,0.04787974]
[1749823641704,6.8983,144.89,144.88,0.04787974]
[1749823643301,0.05140694,144.9,144.78,443.2]
[1749823643498,9.84540043,144.9,144.8,9.84540043]
[1749823643803,56.06540043,144.92,144.84,6.9003]
[1749823644004,46.22,144.92,144.82,9.84540043]
[1749823644306,6.8993,144.87,144.86,0.0507282]
[1749823644799,6.8993,144.87,144.86,2.82e-05]
[1749823645911,16.74470043,144.87,144.86,2.82e-05]
[1749823646802,9.1622,144.87,144.86,2.82e-05]
[1749823647004,19.00760043,144.87,144.86,2.82e-05]
[1749823647501,12.10830043,144.87,144.78,48.5869]
[1749823647905,6.9005,144.85,144.81,6.902]
[1749823648206,9.84540043,144.87,144.78,46.24]
[1749823648399,6.9024,144.81,144.78,46.24]
[1749823648605,0.04719559,144.81,144.78,46.24]
[1749823648906,0.04719559,144.81,144.8,6.9026]
[1749823649102,0.04719559,144.81,144.78,46.24]
[1749823649412,0.04719559,144.81,144.79,6.9028]
[1749823649604,0.04719559,144.81,144.78,46.24]
[1749823649902,0.04719559,144.81,144.8,6.9026]
[1749823650499,0.04719559,144.81,144.8,16.74800043]
[1749823650696,0.04719559,144.81,144.8,6.9026]
[1749823650895,0.04719559,144.81,144.78,46.24]
[1749823651802,6.94959559,144.81,144.78,46.24]
[1749823652202,0.04719559,144.81,144.76,4.6886]
[1749823652407,0.04719559,144.81,144.76,2.3048]
[1749823652803,6.9032,144.79,144.76,9.209]
[1749823653305,0.04719559,144.81,144.76,2.3048]
[1749823654811,0.04719559,144.81,144.79,6.9031]
[1749823655106,0.04719559,144.81,144.75,46.26]
[1749823655299,6.9029,144.8,144.75,50.9177]
[1749823655914,6.9029,144.8,144.77,6.9037]
[1749823656113,6.94939559,144.81,144.75,50.9177]
[1749823656409,0.04719559,144.81,144.78,6.9034]
[1749823656706,0.04719559,144.81,144.75,50.9177]
[1749823656919,0.04719559,144.81,144.79,6.9028]
[1749823657108,6.9039,144.78,144.74,2.74915737]
[1749823657312,0.04845907,144.77,144.74,2.74915737]
[1749823657608,6.95255907,144.77,144.74,2.74915737]
[1749823658109,0.04845907,144.77,144.74,9.65465737]
[1749823658412,0.04845907,144.77,144.74,2.74915737]
[1749823659108,6.9048,144.76,144.75,6.901]
[1749823659314,0.04845907,144.77,144.74,2.74915737]
[1749823659504,6.905,144.75,144.74,2.74915737]
[1749823659703,0.04845907,144.77,144.74,2.74915737]
[1749823660607,0.04845907,144.77,144.75,6.9047]
[1749823661010,0.04845907,144.77,144.74,2.74915737]
[1749823661608,6.95255907,144.77,144.74,9.65435737]
[1749823661808,0.04845907,144.77,144.74,2.74915737]
[1749823662012,0.04845907,144.77,144.74,48.90915737]
[1749823662214,0.04845907,144.77,144.76,6.9045]
[1749823662504,0.04845907,144.77,144.74,48.90915737]
[1749823662908,0.04845907,144.77,144.74,2.74915737]
[1749823664112,0.04845907,144.77,144.75,6.905]
[1749823664710,0.04845907,144.77,144.76,6.9045]
[1749823664901,46.26,144.84,144.74,12.60187782]
[1749823665104,6.9024,144.81,144.75,2.2535]
[1749823665614,46.26,144.84,144.76,9.85272045]
[1749823665816,14.34112045,144.87,144.77,46.16]
[1749823666015,0.04563631,144.83,144.81,0.04522627]
[1749823666311,6.94733631,144.83,144.81,0.04522627]
[1749823666710,0.04563631,144.83,144.81,0.04522627]
[1749823667423,0.04563631,144.83,144.81,6.94712627]
[1749823667813,0.04563631,144.83,144.81,0.04522627]
[1749823668008,0.04563631,144.83,144.81,6.94732627]
[1749823668211,0.04563631,144.83,144.81,0.04522627]
[1749823668420,397.6,144.93,144.82,56.01272045]
[1749823668712,397.6,144.93,144.85,9.83742057]
[1749823668713,2.2624,144.93,144.85,9.83742057]
[1749823668920,6.8971,144.92,144.86,46.16]
[1749823669120,46.16,144.94,144.86,46.16]
[1749823669314,46.16,144.94,144.87,9.83742057]
[1749823669521,0.04868856,144.92,144.89,6.94784354]
[1749823670109,0.04868856,144.92,144.89,9.88726411]
[1749823670316,46.16,144.98,144.91,9.83742057]
[1749823670510,50.6514,145.02,144.95,6.8953]
[1749823670815,6.8943,144.98,144.93,9.83742057]
[1749823671217,50.6514,145.02,144.95,9.83742057]
[1749823671218,0.05246311,144.97,144.95,9.83742057]